bitfinex-derivatives/quotes_BTCF0:USTF0_20260214
["timestamp","ask_amount","ask_price","bid_price","bid_amount"]
[1771105589856,0.014313,69905.0,69898.0,0.014314]
[1771105590045,0.014313,69905.0,69899.0,0.014314]
[1771105590659,0.014313,69905.0,69898.0,0.014314]
[1771105590854,0.014313,69905.0,69899.0,0.014314]
[1771105591161,0.014313,69903.0,69896.0,0.014314]
[1771105591457,0.028753,69902.0,69896.0,0.014314]
[1771105592053,0.01444,69902.0,69896.0,0.014314]
[1771105592249,0.01444,69902.0,69897.0,0.014314]
[1771105592449,0.028753,69902.0,69895.0,0.014314]
[1771105592649,0.01444,69902.0,69896.0,0.014314]
[1771105592855,0.01444,69902.0,69897.0,0.014314]
[1771105593959,0.01444,69902.0,69898.0,0.014314]
[1771105594263,0.01444,69902.0,69897.0,0.014314]
[1771105594454,0.01444,69902.0,69894.0,0.014315]
[1771105594455,0.25162117,69906.0,69894.0,0.014315]
[1771105594652,0.014313,69901.0,69894.0,0.014315]
[1771105594959,0.01444,69901.0,69895.0,0.014315]
[1771105595353,0.01444,69901.0,69896.0,0.014314]
[1771105595558,0.01444,69901.0,69895.0,0.014314]
[1771105596161,0.01444,69901.0,69896.0,0.014314]
[1771105598960,0.01444,69901.0,69897.0,0.014314]
[1771105600157,0.01444,69901.0,69892.0,0.27079953]
[1771105600158,0.01444,69901.0,69896.0,0.014314]
[1771105601454,0.0144,69901.0,69896.0,0.014314]
[1771105602762,0.0144,69901.0,69897.0,0.014314]
[1771105605259,0.0144,69901.0,69899.0,0.014314]
[1771105605465,0.0144,69902.0,69899.0,0.014314]
[1771105605855,0.14316,69908.0,69895.0,0.0144]
[1771105606156,0.03734845,69928.0,69895.0,0.0144]
[1771105606157,0.0144,69907.0,69905.0,0.014312]
[1771105606355,0.0144,69906.0,69905.0,0.014312]
[1771105606663,0.0144,69907.0,69905.0,0.028624]
[1771105606865,0.0144,69909.0,69907.0,0.014312]
[1771105607065,0.0144,69909.0,69908.0,0.014312]
[1771105607261,0.0144,69912.0,69909.0,0.014312]
[1771105607961,0.39134313,69914.0,69904.0,0.0144]
[1771105608167,0.0144,69913.0,69904.0,0.0144]
[1771105608364,0.014311,69912.0,69906.0,0.014312]
[1771105608969,0.028622,69912.0,69905.0,0.014312]
[1771105609267,0.014311,69912.0,69905.0,0.014312]
[1771105609568,0.0144,69913.0,69909.0,0.014312]
[1771105609764,0.0144,69913.0,69908.0,0.014312]
[1771105610272,0.014311,69911.0,69908.0,0.014312]
[1771105610568,0.0144,69911.0,69908.0,0.014312]
[1771105611068,0.014311,69910.0,69908.0,0.014312]
[1771105612666,0.014311,69910.0,69905.0,0.014312]
[1771105612861,0.0144,69911.0,69906.0,0.014312]
[1771105613972,0.028711,69911.0,69906.0,0.014312]
[1771105614775,0.029711,69911.0,69906.0,0.014312]
[1771105615466,0.0144,69911.0,69906.0,0.014312]
[1771105615969,0.028711,69911.0,69906.0,0.014312]
[1771105616165,0.26965672,69910.0,69902.0,0.0144]
[1771105616364,0.014313,69902.0,69894.0,0.0144]
[1771105616568,0.014313,69902.0,69891.0,0.014315]
[1771105616569,0.014314,69899.0,69893.0,0.028715]
[1771105616769,0.0144,69900.0,69894.0,0.014315]
[1771105616972,0.028714,69900.0,69892.0,0.028715]
[1771105617173,0.028714,69900.0,69893.0,0.014315]
[1771105617374,0.0144,69899.0,69894.0,0.02863]
[1771105617572,0.0144,69899.0,69895.0,0.014314]
[1771105617874,0.157473,69905.0,69899.0,0.014314]
[1771105618075,0.014311,69901.0,69899.0,0.014314]
[1771105618371,0.0144,69900.0,69898.0,0.014314]
[1771105618575,0.028711,69900.0,69898.0,0.014314]
[1771105618776,0.0144,69900.0,69898.0,0.014314]
[1771105618974,0.014311,69899.0,69898.0,0.014314]
[1771105620274,0.157473,69905.0,69903.0,0.014313]
[1771105620275,0.14316,69905.0,69903.0,0.014313]
[1771105620472,0.0144,69904.0,69903.0,0.014313]
[1771105621172,0.0144,69904.0,69902.0,0.028626]
[1771105621380,0.0144,69903.0,69902.0,0.014313]
[1771105621575,0.14316,69908.0,69903.0,0.014313]
[1771105621777,0.157472,69908.0,69902.0,0.014313]
[1771105621976,0.0144,69907.0,69902.0,0.014313]
[1771105622174,0.0144,69907.0,69902.0,0.028626]
[1771105622474,0.0144,69907.0,69903.0,0.014313]
[1771105623374,0.014314,69899.0,69895.0,0.0144]
[1771105623573,0.014313,69901.0,69896.0,0.014314]
[1771105623776,0.014314,69899.0,69893.0,0.014315]
[1771105623975,0.014314,69899.0,69891.0,0.014315]
[1771105624175,0.028714,69898.0,69893.0,0.014315]
[1771105624577,0.0144,69898.0,69894.0,0.014315]
[1771105624773,0.0144,69898.0,69895.0,0.014315]
[1771105624978,0.014314,69900.0,69893.0,0.014315]
[1771105625174,0.014314,69898.0,69890.0,0.028631]
[1771105625368,0.014314,69898.0,69892.0,0.014315]
[1771105626276,0.028714,69899.0,69893.0,0.014315]
[1771105626477,0.0144,69899.0,69896.0,0.014314]
[1771105626682,0.0144,69898.0,69896.0,0.014314]
[1771105627374,0.25534572,69913.0,69894.0,0.014315]
[1771105627675,0.15756,69910.0,69897.0,0.24922478]
[1771105627875,0.0144,69909.0,69904.0,0.014313]
[1771105628074,0.0144,69908.0,69904.0,0.014313]
[1771105628477,0.014311,69911.0,69904.0,0.028626]
[1771105628684,0.014312,69909.0,69903.0,0.014313]
[1771105628883,0.014312,69908.0,69901.0,0.014313]
[1771105629087,0.028712,69907.0,69901.0,0.014313]
[1771105629384,0.0144,69906.0,69902.0,0.014313]
[1771105630582,0.014312,69908.0,69902.0,0.014313]
[1771105630777,0.0144,69907.0,69902.0,0.014313]
[1771105631378,0.0144,69907.0,69893.0,0.24922578]
[1771105631379,0.25534572,69935.0,69903.0,0.23491078]
[1771105631585,0.014311,69915.0,69904.0,0.15756]
[1771105631884,0.014311,69913.0,69907.0,0.014312]
[1771105632286,0.014311,69912.0,69907.0,0.014312]
[1771105632585,0.028711,69912.0,69907.0,0.014312]
[1771105632785,0.0144,69912.0,69907.0,0.014312]
[1771105633087,0.15747,69920.0,69914.0,0.014311]
[1771105633277,0.0144,69919.0,69914.0,0.014311]
[1771105633480,0.01431,69920.0,69914.0,0.014311]
[1771105633681,0.014309,69923.0,69915.0,0.01431]
[1771105633986,0.014309,69920.0,69914.0,0.014311]
[1771105634186,0.0144,69919.0,69914.0,0.014311]
[1771105634583,0.00050996,69919.0,69915.0,0.01431]
[1771105635482,0.01431,69919.0,69913.0,0.014311]
[1771105635677,0.01431,69917.0,69911.0,0.028711]
[1771105636079,0.01431,69919.0,69913.0,0.014311]
[1771105636786,0.014309,69920.0,69913.0,0.028622]
[1771105636989,0.014309,69920.0,69913.0,0.014311]
[1771105637394,0.014309,69920.0,69914.0,0.014311]
[1771105637787,0.001,69919.0,69914.0,0.014311]
[1771105638086,0.0144,69918.0,69914.0,0.014311]
[1771105641390,0.0144,69918.0,69916.0,0.01431]
[1771105641695,0.0144,69917.0,69916.0,0.01431]
[1771105641887,0.14316,69922.0,69913.0,0.25026001]
[1771105642089,0.0144,69921.0,69919.0,0.01431]
[1771105642491,0.0144,69920.0,69918.0,0.01431]
[1771105642795,0.01431,69919.0,69914.0,0.014311]
[1771105643188,0.028709,69920.0,69915.0,0.01431]
[1771105643388,0.0144,69920.0,69915.0,0.02862]
[1771105643784,0.0144,69920.0,69916.0,0.01431]
[1771105644898,0.01431,69918.0,69910.0,0.028711]
[1771105645098,0.028622,69915.0,69910.0,0.028711]
[1771105645290,0.25208897,69920.0,69907.0,0.014312]
[1771105645291,0.014311,69914.0,69907.0,0.014312]
[1771105645491,0.028711,69913.0,69908.0,0.014312]
[1771105645885,0.028711,69913.0,69907.0,0.014312]
[1771105646090,0.014311,69911.0,69905.0,0.028712]
[1771105646591,0.014311,69912.0,69906.0,0.014312]
[1771105646891,0.14316,69918.0,69915.0,0.01431]
[1771105647093,0.0144,69917.0,69914.0,0.014311]
[1771105647398,0.0144,69916.0,69914.0,0.014311]
[1771105647696,0.14316,69921.0,69917.0,0.01431]
[1771105647890,0.02871,69920.0,69914.0,0.014311]
[1771105648186,0.028709,69920.0,69914.0,0.014311]
[1771105648388,0.0144,69920.0,69914.0,0.014311]
[1771105648895,0.01431,69916.0,69909.0,0.014312]
[1771105649299,0.02962,69916.0,69909.0,0.014312]
[1771105649498,0.014311,69912.0,69906.0,0.0144]
[1771105649798,0.014311,69913.0,69907.0,0.014312]
[1771105650300,0.014311,69912.0,69906.0,0.028712]
[1771105650692,0.0144,69914.0,69911.0,0.014311]
[1771105650888,0.014309,69921.0,69914.0,0.014311]
[1771105651095,0.0144,69920.0,69916.0,0.01431]
[1771105652599,0.01431,69919.0,69911.0,0.014311]
[1771105653104,0.0144,69920.0,69915.0,0.01431]
[1771105653304,0.028709,69920.0,69914.0,0.014311]
[1771105653704,0.0144,69920.0,69914.0,0.014311]
[1771105654100,0.0144,69920.0,69915.0,0.01431]
[1771105654405,0.0144,69920.0,69916.0,0.01431]
[1771105655110,0.14312,69921.0,69916.0,0.01431]
[1771105655307,0.14312,69921.0,69920.0,0.014309]
[1771105655506,0.15752,69921.0,69919.0,0.01431]
[1771105655708,0.15752,69921.0,69917.0,0.01431]
[1771105655912,0.07871141,69921.0,69917.0,0.01431]
[1771105656513,0.07871141,69921.0,69918.0,0.01431]
[1771105656713,0.0144,69920.0,69918.0,0.01431]
[1771105657113,0.0144,69920.0,69919.0,0.01431]
[1771105657510,0.014309,69924.0,69919.0,0.01431]
[1771105657710,0.0144,69923.0,69919.0,0.01431]
[1771105658513,0.014309,69923.0,69919.0,0.01431]
[1771105658707,0.0144,69922.0,69918.0,0.01431]
[1771105658905,0.0144,69922.0,69919.0,0.01431]
[1771105659811,0.014309,69923.0,69919.0,0.01431]
[1771105660009,0.0144,69921.0,69919.0,0.01431]
[1771105660517,0.014311,69914.0,69908.0,0.014312]
[1771105660704,0.014314,69898.0,69887.0,0.14312]
[1771105660911,0.014314,69900.0,69896.0,0.014314]
[1771105661110,0.014314,69900.0,69895.0,0.014315]
[1771105661316,0.0144,69901.0,69894.0,0.014315]
[1771105661614,0.0144,69901.0,69897.0,0.014314]
[1771105662215,0.0144,69901.0,69896.0,0.014314]
[1771105662416,0.0144,69901.0,69897.0,0.014314]
[1771105662814,0.0144,69901.0,69896.0,0.014314]
[1771105663315,0.0144,69900.0,69896.0,0.014314]
[1771105664008,0.0144,69900.0,69896.0,0.028628]
[1771105664410,0.0144,69900.0,69896.0,0.014314]
[1771105665309,0.043028,69900.0,69893.0,0.014315]
[1771105665509,0.028714,69900.0,69892.0,0.0144]
[1771105665711,0.014314,69897.0,69892.0,0.0144]
[1771105666513,0.014314,69898.0,69892.0,0.0144]
[1771105666815,0.014313,69903.0,69897.0,0.014314]
[1771105667016,0.0144,69902.0,69897.0,0.014314]
[1771105667717,0.0144,69902.0,69901.0,0.014313]
[1771105668204,0.014313,69901.0,69893.0,0.0144]
[1771105668410,0.014314,69899.0,69893.0,0.028715]
[1771105669320,0.014314,69899.0,69894.0,0.014315]
[1771105671316,0.0144,69901.0,69894.0,0.014315]
[1771105672110,0.014314,69900.0,69894.0,0.014315]
[1771105673813,0.25388894,69901.0,69893.0,0.0144]
[1771105674011,0.014314,69897.0,69893.0,0.0144]
[1771105674207,0.014314,69898.0,69893.0,0.0144]
[1771105674814,0.0154,69901.0,69895.0,0.014315]
[1771105675111,0.029713,69901.0,69895.0,0.014315]
[1771105675313,0.014314,69900.0,69895.0,0.014315]
[1771105675919,0.014314,69900.0,69894.0,0.014315]
[1771105677210,0.014314,69899.0,69894.0,0.014315]
[1771105678123,0.014314,69897.0,69891.0,0.028715]
[1771105678323,0.014314,69897.0,69891.0,0.04303]
[1771105678624,0.014314,69897.0,69891.0,0.028715]
[1771105680012,0.014314,69898.0,69891.0,0.028715]
[1771105680211,0.014314,69898.0,69892.0,0.014315]
[1771105680412,0.014314,69900.0,69893.0,0.014315]
[1771105680817,0.014314,69899.0,69892.0,0.014315]
[1771105681620,0.014314,69899.0,69892.0,0.02863]
[1771105681918,0.014314,69899.0,69893.0,0.014315]
[1771105682124,0.014314,69899.0,69893.0,0.02863]
[1771105682319,0.014314,69899.0,69893.0,0.014315]
[1771105684615,0.014314,69898.0,69892.0,0.014315]
[1771105686621,0.014314,69899.0,69893.0,0.014315]
[1771105686821,0.014314,69899.0,69893.0,0.02863]
[1771105687122,0.014314,69899.0,69893.0,0.014315]
[1771105687427,0.014314,69898.0,69893.0,0.014315]
[1771105687621,0.014314,69899.0,69893.0,0.014315]
[1771105688023,0.014312,69908.0,69902.0,0.014313]
[1771105688321,0.171872,69907.0,69902.0,0.014313]
[1771105689018,0.15756,69907.0,69904.0,0.014313]
[1771105689229,0.0144,69906.0,69905.0,0.014312]
[1771105689426,0.14316,69910.0,69906.0,0.014312]
[1771105689628,0.0144,69909.0,69907.0,0.014312]
[1771105689822,0.14316,69916.0,69904.0,0.23147694]
[1771105690027,0.01431,69917.0,69912.0,0.014311]
[1771105690227,0.0144,69916.0,69912.0,0.014311]
[1771105690527,0.0144,69916.0,69911.0,0.014311]
[1771105690528,0.0144,69916.0,69915.0,0.01431]
[1771105691126,0.0144,69916.0,69914.0,0.014311]
[1771105691321,0.001,69916.0,69914.0,0.014311]
[1771105692728,0.0144,69917.0,69914.0,0.014311]
[1771105693529,0.014311,69914.0,69909.0,0.014312]
[1771105693725,0.01431,69915.0,69910.0,0.014311]
[1771105694034,0.014311,69914.0,69910.0,0.014311]
[1771105697726,0.01431,69916.0,69911.0,0.014311]
[1771105697929,0.01431,69915.0,69911.0,0.014311]
[1771105698129,0.014309,69921.0,69915.0,0.01431]
[1771105698332,0.01431,69919.0,69915.0,0.01431]
[1771105698727,0.0144,69918.0,69913.0,0.014311]
[1771105699132,0.0144,69918.0,69914.0,0.014311]
[1771105699535,0.02871,69918.0,69913.0,0.014311]
[1771105699756,0.001,69919.0,69918.0,0.01431]
[1771105699935,0.001,69919.0,69910.0,0.014311]
[1771105699936,0.014309,69922.0,69917.0,0.01431]
[1771105700134,0.028709,69921.0,69917.0,0.01431]
[1771105701039,0.028709,69921.0,69915.0,0.01431]
[1771105701040,0.014309,69920.0,69916.0,0.01431]
[1771105702041,0.014309,69920.0,69915.0,0.01431]
[1771105702636,0.0144,69921.0,69915.0,0.01431]
[1771105703431,0.014309,69920.0,69916.0,0.01431]
[1771105703927,0.014309,69920.0,69913.0,0.014311]
[1771105703928,0.014309,69920.0,69915.0,0.01431]
[1771105705137,0.0144,69921.0,69915.0,0.02862]
[1771105705337,0.014309,69920.0,69915.0,0.02862]
[1771105705543,0.028619,69920.0,69915.0,0.01431]
[1771105706243,0.028619,69920.0,69916.0,0.01431]
[1771105706244,0.014309,69920.0,69916.0,0.01431]
[1771105706744,0.028619,69920.0,69915.0,0.01431]
[1771105707138,0.028709,69921.0,69916.0,0.01431]
[1771105707436,0.014309,69920.0,69916.0,0.01431]
[1771105707738,0.014309,69920.0,69915.0,0.01431]
[1771105708843,0.01431,69919.0,69915.0,0.01431]
[1771105709244,0.028709,69921.0,69916.0,0.01431]
[1771105709543,0.014309,69920.0,69916.0,0.01431]
[1771105709846,0.014309,69920.0,69915.0,0.01431]
[1771105710046,0.0144,69921.0,69914.0,0.01431]
[1771105710233,0.0144,69921.0,69917.0,0.01431]
[1771105710439,0.014308,69926.0,69921.0,0.014309]
[1771105710638,0.0144,69925.0,69921.0,0.014309]
[1771105711048,0.028708,69925.0,69921.0,0.014309]
[1771105711343,0.043017,69925.0,69920.0,0.014309]
[1771105711647,0.014309,69924.0,69920.0,0.014309]
[1771105712145,0.014309,69923.0,69917.0,0.01431]
[1771105712345,0.014309,69920.0,69915.0,0.01431]
[1771105712545,0.014309,69920.0,69916.0,0.01431]
[1771105712746,0.014309,69921.0,69916.0,0.01431]
[1771105713540,0.014309,69921.0,69917.0,0.01431]
[1771105714441,0.014309,69921.0,69916.0,0.01431]
[1771105714946,0.014309,69920.0,69916.0,0.01431]
[1771105720546,0.014309,69921.0,69916.0,0.01431]
[1771105721654,0.0144,69922.0,69917.0,0.01431]
[1771105721954,0.028709,69922.0,69917.0,0.01431]
[1771105723957,0.014309,69922.0,69917.0,0.01431]
[1771105724158,0.028709,69922.0,69917.0,0.01431]
[1771105724551,0.014309,69922.0,69917.0,0.01431]
[1771105724760,0.014308,69926.0,69917.0,0.01431]
[1771105725152,0.014309,69922.0,69917.0,0.01431]
[1771105725351,0.028709,69922.0,69917.0,0.01431]
[1771105725559,0.014309,69922.0,69917.0,0.01431]
[1771105725858,0.028709,69922.0,69917.0,0.01431]
[1771105726058,0.014309,69921.0,69915.0,0.0144]
[1771105727256,0.014311,69911.0,69909.0,0.23453367]
[1771105727462,0.014311,69914.0,69903.0,0.014313]
[1771105727767,0.028711,69914.0,69906.0,0.23453367]
[1771105728065,0.014312,69910.0,69905.0,0.0144]
[1771105728259,0.014312,69910.0,69901.0,6.7e-07]
[1771105728260,0.014313,69903.0,69901.0,6.7e-07]
[1771105728457,0.014313,69903.0,69897.0,0.014314]
[1771105729068,0.014313,69903.0,69898.0,0.014314]
[1771105729569,0.014313,69903.0,69895.0,0.0144]
[1771105729777,0.014313,69902.0,69896.0,0.014314]
[1771105730068,0.014313,69904.0,69897.0,0.014314]
[1771105730469,0.014313,69903.0,69897.0,0.014314]
[1771105730974,0.0144,69907.0,69904.0,0.014313]
[1771105731166,0.0144,69907.0,69906.0,0.014312]
[1771105731370,0.014309,69923.0,69913.0,0.014311]
[1771105731567,0.0144,69922.0,69916.0,0.01431]
[1771105731965,0.028709,69922.0,69916.0,0.01431]
[1771105732168,0.014309,69921.0,69915.0,0.01431]
[1771105732367,0.028709,69922.0,69915.0,0.01431]
[1771105732771,0.014309,69921.0,69915.0,0.01431]
[1771105733077,0.014311,69911.0,69909.0,0.0144]
[1771105733276,0.014312,69905.0,69898.0,0.014314]
[1771105733473,0.014312,69906.0,69903.0,0.0144]
[1771105733776,0.014312,69908.0,69898.0,0.014314]
[1771105733777,0.014313,69904.0,69898.0,0.014314]
[1771105733975,0.014312,69907.0,69897.0,0.014314]
[1771105734173,0.014312,69907.0,69901.0,0.014313]
[1771105734677,0.014313,69904.0,69898.0,0.028714]
[1771105734871,0.028624,69906.0,69899.0,0.014314]
[1771105735073,0.014313,69904.0,69898.0,0.028714]
[1771105735571,0.014313,69903.0,69898.0,0.0144]
[1771105735769,0.014313,69905.0,69898.0,0.0144]
[1771105735972,0.014313,69905.0,69894.0,0.157435]
[1771105736164,0.014313,69902.0,69896.0,0.014314]
[1771105737872,0.014313,69903.0,69897.0,0.014314]
[1771105738072,0.014313,69904.0,69896.0,0.014314]
[1771105738073,0.014313,69904.0,69898.0,0.014314]
[1771105738480,0.01431,69917.0,69905.0,0.06872093]
[1771105738679,0.01431,69916.0,69909.0,0.014312]
[1771105738877,0.01431,69916.0,69909.0,0.028712]
[1771105739275,0.02871,69917.0,69909.0,0.0144]
[1771105739579,0.014311,69912.0,69909.0,0.0144]
[1771105740078,0.0144,69917.0,69911.0,0.014311]
[1771105740277,0.0144,69917.0,69912.0,0.014311]
[1771105740474,0.014309,69921.0,69915.0,0.01431]
[1771105740673,0.0144,69920.0,69915.0,0.01431]
[1771105740869,0.01431,69917.0,69911.0,0.014311]
[1771105741683,0.01431,69917.0,69912.0,0.014311]
[1771105742381,0.014311,69911.0,69909.0,0.0144]
[1771105742582,0.014311,69911.0,69906.0,0.22365746]
[1771105742583,0.014311,69911.0,69910.0,0.0144]
[1771105742778,0.014312,69907.0,69906.0,0.23805746]
[1771105743084,0.014312,69906.0,69903.0,0.0144]
[1771105743284,0.0144,69914.0,69902.0,0.14312]
[1771105743285,0.0144,69909.0,69902.0,0.14312]
[1771105743476,0.014312,69907.0,69902.0,0.14312]
[1771105743782,0.0144,69909.0,69903.0,0.00154027]
[1771105743980,0.014313,69905.0,69902.0,0.14312]
[1771105744180,0.014313,69904.0,69902.0,0.14312]
[1771105744384,0.014313,69904.0,69902.0,0.14498799]
[1771105744971,0.014313,69904.0,69902.0,0.14312]
[1771105745783,0.014313,69904.0,69901.0,0.0144]
[1771105746178,0.028712,69909.0,69899.0,0.0144]
[1771105746379,0.028712,69909.0,69902.0,0.014313]
[1771105746583,0.028712,69909.0,69903.0,0.014313]
[1771105746784,0.0144,69909.0,69904.0,0.014313]
[1771105747385,0.028712,69909.0,69902.0,0.014313]
[1771105748289,0.028712,69909.0,69902.0,0.028626]
[1771105748678,0.028712,69909.0,69903.0,0.014313]
[1771105749286,0.014312,69909.0,69903.0,0.014313]
[1771105749482,0.0144,69908.0,69902.0,0.014313]
[1771105750386,0.0144,69908.0,69903.0,0.014313]
[1771105751288,0.0144,69908.0,69905.0,0.014312]
[1771105752187,0.0144,69908.0,69906.0,0.014312]
[1771105752383,0.14316,69913.0,69906.0,0.014312]
[1771105752583,0.157471,69913.0,69907.0,0.014312]
[1771105752777,0.014312,69910.0,69904.0,0.014313]
[1771105752983,0.0144,69909.0,69904.0,0.014313]
[1771105753289,0.014312,69908.0,69901.0,0.014313]
[1771105753590,0.014312,69908.0,69902.0,0.014313]
[1771105754084,0.0144,69909.0,69905.0,0.014312]
[1771105754686,0.014311,69911.0,69905.0,0.014312]
[1771105754889,0.0144,69910.0,69905.0,0.014312]
[1771105755686,0.0144,69910.0,69906.0,0.014312]
[1771105755889,0.0144,69910.0,69905.0,0.014312]
[1771105756695,0.014311,69911.0,69905.0,0.014312]
[1771105756886,0.0144,69910.0,69906.0,0.014312]
[1771105757590,0.0144,69910.0,69905.0,0.014312]
[1771105757789,0.0144,69909.0,69905.0,0.014312]
[1771105763196,0.0144,69909.0,69904.0,0.014313]
[1771105764095,0.014311,69910.0,69904.0,0.014313]
[1771105764295,0.0144,69909.0,69904.0,0.014313]
[1771105764794,0.0144,69909.0,69905.0,0.014312]
[1771105765495,0.014311,69911.0,69905.0,0.014312]
[1771105765696,0.0144,69909.0,69905.0,0.014312]
[1771105765899,0.0144,69909.0,69907.0,0.00391538]
[1771105766797,0.0144,69909.0,69905.0,0.014312]
[1771105767100,0.0144,69909.0,69908.0,0.00391538]
[1771105767797,0.0144,69909.0,69904.0,0.014313]
[1771105768397,0.0144,69909.0,69904.0,0.028626]
[1771105768995,0.0144,69909.0,69904.0,0.014313]
[1771105769800,0.0144,69909.0,69904.0,0.028626]
[1771105770198,0.0144,69909.0,69904.0,0.014313]
[1771105771297,0.0144,69909.0,69904.0,0.028626]
[1771105771799,0.0144,69909.0,69905.0,0.014312]
[1771105773201,0.0144,69909.0,69904.0,0.014313]
[1771105773599,0.0144,69909.0,69904.0,0.028626]
[1771105774501,0.014311,69910.0,69905.0,0.014312]
[1771105774698,0.0144,69909.0,69905.0,0.014312]
[1771105775802,0.0144,69909.0,69904.0,0.014313]
[1771105776002,0.0144,69909.0,69900.0,0.014313]
[1771105776003,0.014313,69903.0,69886.0,0.014316]
[1771105776199,0.0144,69902.0,69884.0,0.14316]
[1771105776398,0.014315,69894.0,69887.0,0.014316]
[1771105776709,0.014315,69894.0,69888.0,0.0144]
[1771105776903,0.02863,69894.0,69888.0,0.0144]
[1771105777097,0.014315,69894.0,69888.0,0.0144]
[1771105777299,0.014315,69894.0,69884.0,0.14316]
[1771105777500,0.014316,69889.0,69884.0,0.15756]
[1771105777901,0.028715,69893.0,69886.0,0.014316]
[1771105778102,0.014315,69892.0,69886.0,0.014316]
[1771105778307,0.0144,69893.0,69890.0,0.014316]
[1771105778508,0.0144,69893.0,69887.0,0.014316]
[1771105778806,0.014315,69894.0,69887.0,0.014316]
[1771105779007,0.0144,69893.0,69887.0,0.014316]
[1771105781210,0.0144,69893.0,69889.0,0.014316]
[1771105781710,0.0144,69893.0,69888.0,0.014316]
[1771105783804,0.0154,69893.0,69888.0,0.014316]
[1771105784204,0.0154,69893.0,69892.0,0.014315]
[1771105784408,0.0144,69894.0,69890.0,0.014316]
[1771105784604,0.028715,69894.0,69887.0,0.0144]
[1771105784812,0.028715,69894.0,69888.0,0.014316]
[1771105785513,0.014315,69893.0,69888.0,0.014316]
[1771105785708,0.014315,69892.0,69887.0,0.0144]
[1771105786213,0.014315,69893.0,69887.0,0.0144]
[1771105786414,0.014315,69892.0,69887.0,0.0144]
[1771105786606,0.014315,69892.0,69887.0,0.028716]
[1771105786807,0.014316,69890.0,69885.0,0.0144]
[1771105787007,0.014315,69891.0,69885.0,0.028717]
[1771105787210,0.0144,69893.0,69885.0,0.028717]
[1771105787413,0.014315,69891.0,69885.0,0.028717]
[1771105787808,0.028631,69891.0,69885.0,0.028717]
[1771105788003,0.014315,69891.0,69885.0,0.028717]
[1771105788305,0.014315,69891.0,69877.0,0.05292195]
[1771105788306,0.014316,69889.0,69876.0,0.14316]
[1771105788512,0.014317,69884.0,69877.0,0.0144]
[1771105788811,0.014317,69883.0,69877.0,0.0144]
[1771105789010,0.014317,69882.0,69877.0,0.0144]
[1771105791013,0.0144,69885.0,69877.0,0.0144]
[1771105791214,0.028717,69885.0,69879.0,0.014318]
[1771105791516,0.014317,69884.0,69878.0,0.014318]
[1771105792216,0.0144,69885.0,69877.0,0.0144]
[1771105792409,0.0144,69885.0,69878.0,0.014318]
[1771105792610,0.0144,69885.0,69882.0,0.014317]
[1771105792811,0.014315,69895.0,69886.0,0.014316]
[1771105793011,0.014315,69893.0,69886.0,0.014316]
[1771105793511,0.014315,69892.0,69886.0,0.014316]
[1771105793710,0.0144,69891.0,69886.0,0.014316]
[1771105794214,0.0144,69891.0,69886.0,0.028632]
[1771105794415,0.0144,69891.0,69887.0,0.014316]
[1771105794612,0.0144,69891.0,69886.0,0.014316]
[1771105795120,0.0144,69891.0,69887.0,0.014316]
[1771105795321,0.0144,69891.0,69886.0,0.014316]
[1771105795522,0.028715,69891.0,69885.0,0.014317]
[1771105795919,0.028715,69891.0,69885.0,0.028633]
[1771105796220,0.0144,69891.0,69886.0,0.014316]
[1771105796519,0.0144,69891.0,69887.0,0.014316]
[1771105796721,0.028715,69891.0,69886.0,0.014316]
[1771105797017,0.014316,69888.0,69882.0,0.014317]
[1771105797213,0.014316,69888.0,69883.0,0.014317]
[1771105798023,0.014316,69890.0,69883.0,0.014317]
[1771105798024,0.014316,69890.0,69884.0,0.014317]
[1771105799523,0.014316,69889.0,69883.0,0.014317]
[1771105801324,0.014316,69890.0,69884.0,0.014317]
[1771105802226,0.014316,69889.0,69883.0,0.014317]
[1771105802523,0.014316,69889.0,69883.0,0.028634]
[1771105802720,0.014316,69890.0,69881.0,0.028717]
[1771105802922,0.014316,69890.0,69884.0,0.014317]
[1771105804425,0.028716,69890.0,69884.0,0.014317]
[1771105804623,0.0144,69890.0,69884.0,0.014317]
[1771105804825,0.028716,69890.0,69884.0,0.014317]
[1771105805016,0.014316,69889.0,69883.0,0.014317]
[1771105809631,0.028632,69889.0,69883.0,0.014317]
[1771105809929,0.014316,69889.0,69883.0,0.014317]
[1771105810122,0.028716,69890.0,69882.0,0.014317]
[1771105810525,0.028716,69890.0,69883.0,0.014317]
[1771105812430,0.028716,69890.0,69882.0,0.014317]
[1771105812628,0.028716,69890.0,69884.0,0.014317]
[1771105813730,0.0144,69890.0,69885.0,0.014316]
[1771105814228,0.028716,69890.0,69885.0,0.014316]
[1771105814428,0.028716,69890.0,69884.0,0.014317]
[1771105814930,0.014316,69889.0,69883.0,0.014317]
[1771105816231,0.01045594,69889.0,69883.0,0.014317]
[1771105816532,0.028716,69890.0,69884.0,0.014317]
[1771105816831,0.028716,69890.0,69883.0,0.014317]
[1771105817131,0.014316,69889.0,69883.0,0.014317]
[1771105817525,0.014317,69886.0,69881.0,0.0144]
[1771105817732,0.014316,69887.0,69881.0,0.0144]
[1771105817926,0.014317,69886.0,69881.0,0.0144]
[1771105818929,0.014318,69879.0,69876.0,0.0144]
[1771105819124,0.014318,69879.0,69875.0,0.0144]
[1771105819932,0.028717,69884.0,69875.0,0.0144]